[Event "Live Chess"]
[Site "Chess.com"]
[Date "2023.05.21"]
[Round "-"]
[White "davigator"]
[Black "BillythekidFellowes"]
[Result "0-1"]
[WhiteElo "2313"]
[BlackElo "2071"]
[TimeControl "300"]
[EndTime "5:23:05 PDT"]
[Termination "BillythekidFellowes won by checkmate"]

1. e4 {[%clk 0:04:56.6]} 1... Nc6 {[%clk 0:04:53.9]} 2. Bb5 {[%clk 0:04:48.1]}
2... d5 {[%clk 0:04:48.1]} 3. Bxc6+ {[%clk 0:04:45.3]} 3... bxc6 {[%clk
0:04:47.4]} 4. e5 {[%clk 0:04:45.1]} 4... f6 {[%clk 0:04:46.6]} 5. f4 {[%clk
0:04:35]} 5... Bf5 {[%clk 0:04:20.3]} 6. Nf3 {[%clk 0:04:32.4]} 6... e6 {[%clk
0:04:01.6]} 7. O-O {[%clk 0:04:30.7]} 7... c5 {[%clk 0:03:56.7]} 8. d3 {[%clk
0:04:29.1]} 8... c4 {[%clk 0:03:51.7]} 9. d4 {[%clk 0:04:27.7]} 9... c5 {[%clk
0:03:50.9]} 10. Be3 {[%clk 0:04:18.4]} 10... Qb6 {[%clk 0:03:45.6]} 11. b3
{[%clk 0:04:16.2]} 11... cxb3 {[%clk 0:03:41.1]} 12. axb3 {[%clk 0:04:14.8]}
12... Nh6 {[%clk 0:03:31.3]} 13. h3 {[%clk 0:04:12.8]} 13... Be7 {[%clk
0:03:25.8]} 14. Nc3 {[%clk 0:04:08]} 14... O-O {[%clk 0:03:06.3]} 15. Na4 {[%clk
0:04:06.2]} 15... Qc6 {[%clk 0:03:03.8]} 16. dxc5 {[%clk 0:04:02.2]} 16... Be4
{[%clk 0:02:46.5]} 17. Nd2 {[%clk 0:03:57.3]} 17... Nf5 {[%clk 0:02:44.5]} 18.
Bf2 {[%clk 0:03:45.2]} 18... fxe5 {[%clk 0:02:40.7]} 19. fxe5 {[%clk 0:03:40.6]}
19... Rad8 {[%clk 0:02:11.2]} 20. Nxe4 {[%clk 0:03:38.1]} 20... dxe4 {[%clk
0:02:11.1]} 21. Qe2 {[%clk 0:03:37.5]} 21... Bg5 {[%clk 0:02:02.8]} 22. g4
{[%clk 0:03:27.8]} 22... Rd2 {[%clk 0:01:51.7]} 23. Qc4 {[%clk 0:03:21.9]} 23...
e3 {[%clk 0:01:47.5]} 24. gxf5 {[%clk 0:03:19.8]} 24... exf2+ {[%clk 0:01:46.8]}
25. Rxf2 {[%clk 0:03:16]} 25... Be3 {[%clk 0:01:45.2]} 26. Rf1 {[%clk
0:03:08.3]} 26... Bxf2+ {[%clk 0:01:40]} 27. Rxf2 {[%clk 0:03:06.5]} 27... Rxf2
{[%clk 0:01:39.6]} 28. Kxf2 {[%clk 0:03:05.7]} 28... Rxf5+ {[%clk 0:01:39.2]}
29. Ke1 {[%clk 0:03:03.1]} 29... Qh1+ {[%clk 0:01:36.6]} 30. Kd2 {[%clk
0:03:02]} 30... Qg2+ {[%clk 0:01:35]} 31. Kc1 {[%clk 0:02:59.1]} 31... Qc6
{[%clk 0:01:16]} 32. Qd4 {[%clk 0:02:52.9]} 32... Kf7 {[%clk 0:01:00.1]} 33. Qd6
{[%clk 0:02:51.3]} 33... Qxd6 {[%clk 0:00:58.2]} 34. exd6 {[%clk 0:02:50.4]}
34... Rd5 {[%clk 0:00:54]} 35. c4 {[%clk 0:02:48.2]} 35... Rd4 {[%clk
0:00:52.4]} 36. Kc2 {[%clk 0:02:47.3]} 36... e5 {[%clk 0:00:51.2]} 37. Kc3
{[%clk 0:02:46.2]} 37... g5 {[%clk 0:00:49.8]} 38. Nb2 {[%clk 0:02:45.7]} 38...
h5 {[%clk 0:00:48.4]} 39. Nd3 {[%clk 0:02:45.3]} 39... Ke6 {[%clk 0:00:47.6]}
40. b4 {[%clk 0:02:43.5]} 40... g4 {[%clk 0:00:46.2]} 41. hxg4 {[%clk
0:02:42.1]} 41... hxg4 {[%clk 0:00:46.1]} 42. b5 {[%clk 0:02:39.7]} 42... g3
{[%clk 0:00:44.2]} 43. Ne1 {[%clk 0:02:38.9]} 43... Kd7 {[%clk 0:00:34.2]} 44.
Nf3 {[%clk 0:02:34.5]} 44... g2 {[%clk 0:00:31.8]} 45. Nxe5+ {[%clk 0:02:27.1]}
45... Kd8 {[%clk 0:00:26]} 46. Nf3 {[%clk 0:02:24.2]} 46... Rf4 {[%clk
0:00:24.6]} 47. Ng1 {[%clk 0:02:23.2]} 47... Rf1 {[%clk 0:00:24.1]} 48. b6
{[%clk 0:02:03.2]} 48... axb6 {[%clk 0:00:22.9]} 49. cxb6 {[%clk 0:02:02.4]}
49... Rxg1 {[%clk 0:00:22.4]} 50. c5 {[%clk 0:02:00.5]} 50... Rc1+ {[%clk
0:00:21.4]} 51. Kb4 {[%clk 0:01:59.5]} 51... g1=Q {[%clk 0:00:21.3]} 52. b7
{[%clk 0:01:56.2]} 52... Qxc5+ {[%clk 0:00:20.2]} 53. Ka4 {[%clk 0:01:54.8]}
53... Ra1+ {[%clk 0:00:18.9]} 54. Kb3 {[%clk 0:01:53.5]} 54... Ra3+ {[%clk
0:00:18.8]} 55. Kb2 {[%clk 0:01:52.3]} 55... Qc3+ {[%clk 0:00:18.7]} 56. Kb1
{[%clk 0:01:51.6]} 56... Ra1# {[%clk 0:00:18.6]} 0-1

[Event "Live Chess"]
[Site "Chess.com"]
[Date "2023.05.21"]
[Round "-"]
[White "jbooth"]
[Black "hturner40"]
[Result "0-1"]
[WhiteElo "1660"]
[BlackElo "1778"]
[TimeControl "300"]
[EndTime "5:23:06 PDT"]
[Termination "hturner40 won by resignation"]

1. e4 {[%clk 0:04:57.9]} 1... Nc6 {[%clk 0:04:59.2]} 2. d4 {[%clk 0:04:55.4]}
2... e5 {[%clk 0:04:58.1]} 3. d5 {[%clk 0:04:53.4]} 3... Nce7 {[%clk 0:04:57.1]}
4. c4 {[%clk 0:04:52.9]} 4... Ng6 {[%clk 0:04:56.3]} 5. Be3 {[%clk 0:04:51]}
5... Bb4+ {[%clk 0:04:45.3]} 6. Nc3 {[%clk 0:04:48.2]} 6... Bxc3+ {[%clk
0:04:40.6]} 7. bxc3 {[%clk 0:04:46]} 7... d6 {[%clk 0:04:39.7]} 8. g3 {[%clk
0:04:44.4]} 8... b6 {[%clk 0:04:37]} 9. a4 {[%clk 0:04:29]} 9... a5 {[%clk
0:04:34.3]} 10. Ne2 {[%clk 0:04:22.4]} 10... Ba6 {[%clk 0:04:13.3]} 11. Nc1
{[%clk 0:04:19.5]} 11... Nf6 {[%clk 0:04:08.4]} 12. Bd3 {[%clk 0:04:16.9]} 12...
Qd7 {[%clk 0:03:55.2]} 13. h4 {[%clk 0:04:11.8]} 13... Ng4 {[%clk 0:03:49]} 14.
Qf3 {[%clk 0:04:05.8]} 14... h5 {[%clk 0:03:35.9]} 15. Bd2 {[%clk 0:03:55.5]}
15... O-O {[%clk 0:03:18.5]} 16. Kf1 {[%clk 0:03:49.9]} 16... Ne7 {[%clk
0:03:16.2]} 17. Kg2 {[%clk 0:03:48.4]} 17... f5 {[%clk 0:03:13.1]} 18. Qe2
{[%clk 0:03:41.8]} 18... fxe4 {[%clk 0:03:09.1]} 19. Bxe4 {[%clk 0:03:39.2]}
19... Rxf2+ {[%clk 0:03:04.9]} 20. Qxf2 {[%clk 0:03:35]} 20... Nxf2 {[%clk
0:03:03.7]} 21. Kxf2 {[%clk 0:03:34.1]} 21... Rf8+ {[%clk 0:03:00.4]} 22. Ke3
{[%clk 0:03:30]} 22... Bxc4 {[%clk 0:02:58]} 23. Nd3 {[%clk 0:03:27.6]} 23...
Bxd3 {[%clk 0:02:53.6]} 24. Kxd3 {[%clk 0:03:23.7]} 24... Qg4 {[%clk 0:02:36.7]}
25. Rhg1 {[%clk 0:03:17.9]} 25... Nf5 {[%clk 0:02:16.5]} 26. Raf1 {[%clk
0:03:06.5]} 26... Nxg3 {[%clk 0:01:57.3]} 27. Rxf8+ {[%clk 0:03:03.6]} 27...
Kxf8 {[%clk 0:01:53.9]} 28. Re1 {[%clk 0:02:33.7]} 28... Nxe4 {[%clk 0:01:47.2]}
29. Rxe4 {[%clk 0:02:31.7]} 29... Qf3+ {[%clk 0:01:43.6]} 30. Be3 {[%clk
0:02:27]} 30... Ke7 {[%clk 0:01:29.9]} 31. c4 {[%clk 0:02:09.9]} 31... Kf6
{[%clk 0:01:26.2]} 32. Kd2 {[%clk 0:02:03.4]} 32... Qxe4 {[%clk 0:01:23.4]} 0-1

[Event "Live Chess"]
[Site "Chess.com"]
[Date "2023.05.21"]
[Round "-"]
[White "EdenHazard8"]
[Black "MartynColebrook"]
[Result "1-0"]
[WhiteElo "1948"]
[BlackElo "967"]
[TimeControl "300"]
[EndTime "5:23:12 PDT"]
[Termination "EdenHazard8 won by resignation"]

1. e4 {[%clk 0:04:59.1]} 1... d5 {[%clk 0:04:56.2]} 2. exd5 {[%clk 0:04:57.6]}
2... Qxd5 {[%clk 0:04:54.5]} 3. Nc3 {[%clk 0:04:57.5]} 3... Qa5 {[%clk
0:04:52.3]} 4. d4 {[%clk 0:04:56.2]} 4... e5 {[%clk 0:04:50.5]} 5. dxe5 {[%clk
0:04:54.6]} 5... Qxe5+ {[%clk 0:04:49]} 6. Be2 {[%clk 0:04:54.2]} 6... Bg4
{[%clk 0:04:45.6]} 7. Nf3 {[%clk 0:04:54.1]} 7... Bxf3 {[%clk 0:04:40]} 8. gxf3
{[%clk 0:04:54]} 8... Bc5 {[%clk 0:04:37.5]} 9. Qd5 {[%clk 0:04:49.1]} 9... Qxd5
{[%clk 0:04:30.3]} 10. Nxd5 {[%clk 0:04:49]} 10... Kd7 {[%clk 0:04:24.5]} 11.
Bf4 {[%clk 0:04:47.3]} 11... Bd6 {[%clk 0:04:19.3]} 12. O-O-O {[%clk 0:04:45.2]}
12... Ne7 {[%clk 0:04:09]} 13. Nxc7 {[%clk 0:04:39.8]} 13... Kxc7 {[%clk
0:04:04]} 14. Bxd6+ {[%clk 0:04:36.8]} 14... Kd7 {[%clk 0:04:01.7]} 15. Bb5+
{[%clk 0:04:26.2]} 15... Ke6 {[%clk 0:03:57.6]} 16. Rhe1+ {[%clk 0:04:22.8]} 1-0

[Event "Live Chess"]
[Site "Chess.com"]
[Date "2023.05.21"]
[Round "-"]
[White "LL220284LL"]
[Black "JackRudd"]
[Result "0-1"]
[WhiteElo "2295"]
[BlackElo "2486"]
[TimeControl "300"]
[EndTime "5:23:25 PDT"]
[Termination "JackRudd won by resignation"]

1. Nf3 {[%clk 0:04:58.2]} 1... Nf6 {[%clk 0:04:58.4]} 2. d4 {[%clk 0:04:56.8]}
2... g6 {[%clk 0:04:57.3]} 3. Bf4 {[%clk 0:04:56]} 3... Bg7 {[%clk 0:04:56.3]}
4. e3 {[%clk 0:04:55.5]} 4... O-O {[%clk 0:04:55.4]} 5. h3 {[%clk 0:04:54.9]}
5... d6 {[%clk 0:04:53.3]} 6. Nbd2 {[%clk 0:04:53.6]} 6... Nfd7 {[%clk
0:04:49.6]} 7. e4 {[%clk 0:04:49.8]} 7... Nc6 {[%clk 0:04:47.7]} 8. c3 {[%clk
0:04:47.9]} 8... e5 {[%clk 0:04:46.8]} 9. Be3 {[%clk 0:04:47.2]} 9... Qe8 {[%clk
0:04:37]} 10. Bd3 {[%clk 0:04:44.7]} 10... f5 {[%clk 0:04:31.6]} 11. exf5 {[%clk
0:04:39]} 11... gxf5 {[%clk 0:04:30.7]} 12. O-O {[%clk 0:04:34.1]} 12... f4
{[%clk 0:04:26.4]} 13. Bc4+ {[%clk 0:04:27.3]} 13... Kh8 {[%clk 0:04:24.9]} 14.
dxe5 {[%clk 0:04:21.1]} 14... fxe3 {[%clk 0:04:22.8]} 15. Ne4 {[%clk 0:04:17.1]}
15... Ndxe5 {[%clk 0:04:19.2]} 16. Nxe5 {[%clk 0:04:15.6]} 16... Nxe5 {[%clk
0:04:18.2]} 17. Bb3 {[%clk 0:04:14.5]} 17... Qg6 {[%clk 0:04:15.5]} 18. Ng3
{[%clk 0:04:10]} 18... exf2+ {[%clk 0:04:10.3]} 0-1

[Event "Live Chess"]
[Site "Chess.com"]
[Date "2023.05.21"]
[Round "-"]
[White "AbilifyXL"]
[Black "wot-not"]
[Result "1-0"]
[WhiteElo "1964"]
[BlackElo "1536"]
[TimeControl "300"]
[EndTime "5:23:29 PDT"]
[Termination "AbilifyXL won by resignation"]

1. d4 {[%clk 0:04:58.9]} 1... Nf6 {[%clk 0:04:58.7]} 2. c4 {[%clk 0:04:58.1]}
2... g6 {[%clk 0:04:56.8]} 3. Nc3 {[%clk 0:04:57.3]} 3... d5 {[%clk 0:04:56.1]}
4. Nf3 {[%clk 0:04:52.4]} 4... Bg7 {[%clk 0:04:46.6]} 5. Bg5 {[%clk 0:04:51.4]}
5... O-O {[%clk 0:04:45.4]} 6. Bxf6 {[%clk 0:04:48.9]} 6... Bxf6 {[%clk
0:04:43]} 7. Nxd5 {[%clk 0:04:45.6]} 7... Bg7 {[%clk 0:04:36.1]} 8. e3 {[%clk
0:04:44.4]} 8... c5 {[%clk 0:04:35.2]} 9. Be2 {[%clk 0:04:41.5]} 9... cxd4
{[%clk 0:04:33.3]} 10. exd4 {[%clk 0:04:40.4]} 10... Bg4 {[%clk 0:04:30.8]} 11.
O-O {[%clk 0:04:36.4]} 11... Nc6 {[%clk 0:04:28.7]} 12. h3 {[%clk 0:04:22.7]}
12... Bxf3 {[%clk 0:04:27.2]} 13. Bxf3 {[%clk 0:04:21.9]} 13... Nxd4 {[%clk
0:04:23.3]} 14. Re1 {[%clk 0:04:17]} 14... Nxf3+ {[%clk 0:04:22]} 15. Qxf3
{[%clk 0:04:15.9]} 15... e6 {[%clk 0:04:11.8]} 16. Nc3 {[%clk 0:04:14.3]} 16...
b6 {[%clk 0:04:06.3]} 17. Rad1 {[%clk 0:04:12.9]} 17... Qf6 {[%clk 0:04:02.4]}
18. Qb7 {[%clk 0:04:03]} 18... Rfb8 {[%clk 0:03:53.1]} 19. Qe4 {[%clk
0:03:53.8]} 19... Rd8 {[%clk 0:03:47.8]} 20. Rxd8+ {[%clk 0:03:51.1]} 20... Rxd8
{[%clk 0:03:46.8]} 21. Qe2 {[%clk 0:03:39.6]} 21... Qg5 {[%clk 0:03:36.8]} 22.
Ne4 {[%clk 0:03:34.3]} 22... Qa5 {[%clk 0:03:27.9]} 23. b3 {[%clk 0:03:32.1]}
23... Bd4 {[%clk 0:02:59.2]} 24. Rd1 {[%clk 0:03:17.1]} 24... e5 {[%clk
0:02:58.2]} 25. Kh2 {[%clk 0:03:03]} 25... f5 {[%clk 0:02:57.1]} 26. Ng5 {[%clk
0:02:55.8]} 26... Rd6 {[%clk 0:02:31.8]} 27. Nf3 {[%clk 0:02:50]} 27... Qc5
{[%clk 0:02:24.5]} 28. Nxd4 {[%clk 0:02:48.2]} 28... Rxd4 {[%clk 0:02:18.6]} 29.
Re1 {[%clk 0:02:45.4]} 29... e4 {[%clk 0:02:15.6]} 30. Qe3 {[%clk 0:02:43.3]}
30... Qe5+ {[%clk 0:02:13.8]} 31. Kh1 {[%clk 0:02:41.6]} 31... Rd3 {[%clk
0:02:12.3]} 32. Qxd3 {[%clk 0:02:39.6]} 32... Qc5 {[%clk 0:02:05.1]} 33. Qd5+
{[%clk 0:02:37.7]} 33... Qxd5 {[%clk 0:02:03.8]} 34. cxd5 {[%clk 0:02:37.6]} 1-0

[Event "Live Chess"]
[Site "Chess.com"]
[Date "2023.05.21"]
[Round "-"]
[White "Conradical12"]
[Black "rideuv21"]
[Result "0-1"]
[WhiteElo "1572"]
[BlackElo "1794"]
[TimeControl "300"]
[EndTime "5:23:33 PDT"]
[Termination "rideuv21 won by resignation"]

1. e4 {[%clk 0:04:58.3]} 1... c5 {[%clk 0:04:59.5]} 2. d4 {[%clk 0:04:56.1]}
2... cxd4 {[%clk 0:04:56.9]} 3. c3 {[%clk 0:04:53.6]} 3... Nf6 {[%clk
0:04:54.7]} 4. e5 {[%clk 0:04:51.5]} 4... Nd5 {[%clk 0:04:54.1]} 5. cxd4 {[%clk
0:04:50.8]} 5... d6 {[%clk 0:04:52.9]} 6. Nf3 {[%clk 0:04:49.9]} 6... Nc6 {[%clk
0:04:50.8]} 7. Bd2 {[%clk 0:04:42.6]} 7... Bg4 {[%clk 0:04:48.1]} 8. Be2 {[%clk
0:04:38.1]} 8... Bxf3 {[%clk 0:04:43.2]} 9. Bxf3 {[%clk 0:04:36.5]} 9... dxe5
{[%clk 0:04:42.8]} 10. O-O {[%clk 0:04:31.8]} 10... exd4 {[%clk 0:04:38.1]} 11.
Re1 {[%clk 0:04:29]} 11... e6 {[%clk 0:04:36.6]} 12. Qb3 {[%clk 0:04:27.1]}
12... Nb6 {[%clk 0:04:22.4]} 13. Bf4 {[%clk 0:03:45.5]} 13... Bd6 {[%clk
0:04:12.9]} 14. Bxd6 {[%clk 0:03:40.5]} 14... Qxd6 {[%clk 0:04:12.8]} 15. Nd2
{[%clk 0:03:38.6]} 15... O-O {[%clk 0:04:10.4]} 16. Ne4 {[%clk 0:03:36.1]} 16...
Qe7 {[%clk 0:04:07.3]} 17. Rad1 {[%clk 0:03:30.8]} 17... Rad8 {[%clk 0:04:02.5]}
18. a4 {[%clk 0:03:23.8]} 18... Nd5 {[%clk 0:04:00.3]} 19. Nd2 {[%clk
0:03:17.2]} 19... Nf4 {[%clk 0:03:52.2]} 20. Bxc6 {[%clk 0:03:04.4]} 20... bxc6
{[%clk 0:03:49.7]} 21. Qf3 {[%clk 0:03:01.3]} 21... Nd5 {[%clk 0:03:46.9]} 22.
Ne4 {[%clk 0:02:56.9]} 22... c5 {[%clk 0:03:43.7]} 23. Qg3 {[%clk 0:02:49.7]}
23... Nf6 {[%clk 0:03:37.2]} 24. Ng5 {[%clk 0:02:44.4]} 24... h6 {[%clk
0:03:13.9]} 25. Ne4 {[%clk 0:02:42.4]} 25... Nxe4 {[%clk 0:03:11.9]} 26. Rxe4
{[%clk 0:02:40.2]} 26... Qd6 {[%clk 0:03:06.4]} 27. Qg4 {[%clk 0:02:32.5]} 27...
d3 {[%clk 0:03:02.2]} 28. Re3 {[%clk 0:02:28.9]} 28... Qa6 {[%clk 0:02:55]} 29.
Rg3 {[%clk 0:02:27.5]} 29... g6 {[%clk 0:02:47.8]} 30. h4 {[%clk 0:02:25.8]}
30... Rd4 {[%clk 0:02:43.2]} 31. Qf3 {[%clk 0:02:21]} 31... Qxa4 {[%clk
0:02:38.4]} 32. h5 {[%clk 0:02:12.4]} 32... g5 {[%clk 0:02:37.1]} 33. Rxd3
{[%clk 0:02:10.5]} 33... Rxd3 {[%clk 0:02:27.9]} 34. Qxd3 {[%clk 0:02:08.1]}
34... Qd4 {[%clk 0:02:27.6]} 35. Qf3 {[%clk 0:02:04.3]} 35... Rd8 {[%clk
0:02:21.9]} 36. Qb7 {[%clk 0:01:56.3]} 36... Qd7 {[%clk 0:02:10.1]} 37. Qe4
{[%clk 0:01:53.8]} 37... Qd5 {[%clk 0:02:05.2]} 38. Qa4 {[%clk 0:01:49.2]} 38...
Qd1+ {[%clk 0:02:02.4]} 39. Qxd1 {[%clk 0:01:46.8]} 39... Rxd1+ {[%clk
0:02:02.3]} 40. Kh2 {[%clk 0:01:45.1]} 40... Rd2 {[%clk 0:02:02.2]} 41. Rb3
{[%clk 0:01:43.9]} 41... Rxf2 {[%clk 0:02:00.4]} 42. Kg3 {[%clk 0:01:41.6]}
42... Rc2 {[%clk 0:01:58.6]} 43. Kf3 {[%clk 0:01:39.4]} 43... c4 {[%clk
0:01:57.4]} 44. Rb4 {[%clk 0:01:37.6]} 44... c3 {[%clk 0:01:56.8]} 45. bxc3
{[%clk 0:01:33.5]} 45... Rxc3+ {[%clk 0:01:56.7]} 46. Ke4 {[%clk 0:01:32.8]}
46... Ra3 {[%clk 0:01:55.2]} 47. Ke5 {[%clk 0:01:31.6]} 47... Kg7 {[%clk
0:01:54.5]} 48. g4 {[%clk 0:01:26.4]} 48... a5 {[%clk 0:01:53.2]} 49. Rb7 {[%clk
0:01:21.8]} 49... a4 {[%clk 0:01:52.4]} 50. Kd6 {[%clk 0:01:20.9]} 50... Ra1
{[%clk 0:01:52.1]} 51. Ke7 {[%clk 0:01:20.4]} 51... a3 {[%clk 0:01:50.4]} 52.
Ke8 {[%clk 0:01:20]} 52... Rf1 {[%clk 0:01:38.9]} 53. Ra7 {[%clk 0:01:17.5]}
53... Rf3 {[%clk 0:01:36.8]} 54. Kd8 {[%clk 0:01:09.3]} 54... e5 {[%clk
0:01:35.7]} 55. Re7 {[%clk 0:01:05.5]} 55... a2 {[%clk 0:01:33.4]} 56. Rxe5
{[%clk 0:01:01.6]} 56... a1=Q {[%clk 0:01:31.6]} 0-1

[Event "Live Chess"]
[Site "Chess.com"]
[Date "2023.05.21"]
[Round "-"]
[White "BJAW87"]
[Black "MarkLim1"]
[Result "0-1"]
[WhiteElo "1450"]
[BlackElo "1702"]
[TimeControl "300"]
[EndTime "5:23:34 PDT"]
[Termination "MarkLim1 won by checkmate"]

1. e4 {[%clk 0:04:58.5]} 1... e6 {[%clk 0:04:56.6]} 2. Nc3 {[%clk 0:04:57.9]}
2... d5 {[%clk 0:04:55.8]} 3. exd5 {[%clk 0:04:57.6]} 3... exd5 {[%clk
0:04:55.1]} 4. d4 {[%clk 0:04:57.5]} 4... Nf6 {[%clk 0:04:51]} 5. Nf3 {[%clk
0:04:57]} 5... Be7 {[%clk 0:04:49.8]} 6. Bd3 {[%clk 0:04:56.1]} 6... Nc6 {[%clk
0:04:48.6]} 7. O-O {[%clk 0:04:55.1]} 7... O-O {[%clk 0:04:47.9]} 8. Re1 {[%clk
0:04:51.3]} 8... Re8 {[%clk 0:04:44.4]} 9. Ng5 {[%clk 0:04:45.3]} 9... h6 {[%clk
0:04:42.8]} 10. Nh3 {[%clk 0:04:41.6]} 10... Bxh3 {[%clk 0:04:40.9]} 11. gxh3
{[%clk 0:04:41.5]} 11... Qd7 {[%clk 0:04:39]} 12. Qf3 {[%clk 0:04:33.3]} 12...
Nxd4 {[%clk 0:04:37.8]} 13. Qg3 {[%clk 0:04:29.7]} 13... Bd6 {[%clk 0:04:28.4]}
14. Qg2 {[%clk 0:04:26.6]} 14... Rxe1+ {[%clk 0:04:26.1]} 15. Bf1 {[%clk
0:04:22]} 15... Nh5 {[%clk 0:04:03.4]} 16. Bxh6 {[%clk 0:04:06.6]} 16... Rxa1
{[%clk 0:03:57.8]} 17. Nxd5 {[%clk 0:04:05.9]} 17... Ne2+ {[%clk 0:03:42.9]} 18.
Kh1 {[%clk 0:04:01.3]} 18... Rxf1+ {[%clk 0:03:36.2]} 19. Qxf1 {[%clk 0:03:54]}
19... gxh6 {[%clk 0:03:34.3]} 20. Qxe2 {[%clk 0:03:44]} 20... Qxh3 {[%clk
0:03:31.5]} 21. f3 {[%clk 0:03:27.2]} 21... Nf4 {[%clk 0:03:14.8]} 22. Nf6+
{[%clk 0:03:21.7]} 22... Kh8 {[%clk 0:03:08.4]} 23. Ng4 {[%clk 0:03:09.5]} 23...
Nh5 {[%clk 0:02:51.8]} 24. Qd2 {[%clk 0:03:02]} 24... Qf1# {[%clk 0:02:29.4]}
0-1

[Event "Live Chess"]
[Site "Chess.com"]
[Date "2023.05.21"]
[Round "-"]
[White "GwaryTek"]
[Black "Chesscoach_Golichenko"]
[Result "0-1"]
[WhiteElo "2062"]
[BlackElo "2613"]
[TimeControl "300"]
[EndTime "5:23:53 PDT"]
[Termination "Chesscoach_Golichenko won on time"]

1. d4 {[%clk 0:04:57.4]} 1... Nf6 {[%clk 0:04:59.4]} 2. c4 {[%clk 0:04:55.8]}
2... e6 {[%clk 0:04:52.8]} 3. Nc3 {[%clk 0:04:54.4]} 3... Bb4 {[%clk 0:04:46.1]}
4. Nf3 {[%clk 0:04:52.7]} 4... O-O {[%clk 0:04:43.5]} 5. g3 {[%clk 0:04:50.6]}
5... d5 {[%clk 0:04:41.6]} 6. Bg2 {[%clk 0:04:49.6]} 6... a6 {[%clk 0:04:36.6]}
7. O-O {[%clk 0:04:49.5]} 7... dxc4 {[%clk 0:04:31.6]} 8. a4 {[%clk 0:04:47.3]}
8... Nc6 {[%clk 0:04:29.8]} 9. Re1 {[%clk 0:04:31.7]} 9... Rb8 {[%clk 0:04:19]}
10. e4 {[%clk 0:04:29.7]} 10... b5 {[%clk 0:04:14.7]} 11. axb5 {[%clk
0:04:26.2]} 11... axb5 {[%clk 0:04:14.6]} 12. e5 {[%clk 0:04:23.5]} 12... Nd5
{[%clk 0:04:03.1]} 13. Bd2 {[%clk 0:04:22.3]} 13... Bxc3 {[%clk 0:03:58.6]} 14.
bxc3 {[%clk 0:04:21]} 14... b4 {[%clk 0:03:57.8]} 15. Qc2 {[%clk 0:03:49.9]}
15... b3 {[%clk 0:03:50.1]} 16. Qe4 {[%clk 0:03:48.8]} 16... Nce7 {[%clk
0:03:28.4]} 17. Ng5 {[%clk 0:03:42.3]} 17... Ng6 {[%clk 0:03:21.4]} 18. h4
{[%clk 0:03:40.9]} 18... h6 {[%clk 0:03:19.6]} 19. h5 {[%clk 0:03:08.7]} 19...
hxg5 {[%clk 0:03:15.4]} 20. hxg6 {[%clk 0:03:07.4]} 20... f5 {[%clk 0:02:51.2]}
21. exf6 {[%clk 0:02:56]} 21... Qxf6 {[%clk 0:02:37.9]} 22. Re2 {[%clk
0:00:39.1]} 22... b2 {[%clk 0:01:57.1]} 23. Rb1 {[%clk 0:00:29.8]} 23... Rb3
{[%clk 0:01:46.6]} 24. Qg4 {[%clk 0:00:16.2]} 24... Qxg6 {[%clk 0:01:37]} 25.
Be4 {[%clk 0:00:05.5]} 25... Rf5 {[%clk 0:01:34.9]} 26. Bxg5 {[%clk 0:00:03.3]}
26... Qxg5 {[%clk 0:01:33.6]} 27. Bxf5 {[%clk 0:00:00.2]} 27... Qxf5 {[%clk
0:01:29.3]} 0-1

[Event "Live Chess"]
[Site "Chess.com"]
[Date "2023.05.21"]
[Round "-"]
[White "raminguy"]
[Black "Nicckui"]
[Result "1-0"]
[WhiteElo "1955"]
[BlackElo "1773"]
[TimeControl "300"]
[EndTime "5:23:53 PDT"]
[Termination "raminguy won by checkmate"]

1. d4 {[%clk 0:04:58.9]} 1... Nf6 {[%clk 0:04:57.5]} 2. Nc3 {[%clk 0:04:58.3]}
2... e6 {[%clk 0:04:56.8]} 3. e4 {[%clk 0:04:56.9]} 3... c5 {[%clk 0:04:50.7]}
4. d5 {[%clk 0:04:55.6]} 4... d6 {[%clk 0:04:48.8]} 5. Nf3 {[%clk 0:04:53.9]}
5... exd5 {[%clk 0:04:42.8]} 6. exd5 {[%clk 0:04:51.9]} 6... Bf5 {[%clk
0:04:40.9]} 7. Bc4 {[%clk 0:04:40.7]} 7... g6 {[%clk 0:04:37]} 8. O-O {[%clk
0:04:38.6]} 8... Bg7 {[%clk 0:04:35.5]} 9. Re1+ {[%clk 0:04:36.9]} 9... Kf8
{[%clk 0:04:34.2]} 10. Bf4 {[%clk 0:04:31.7]} 10... a6 {[%clk 0:04:32.1]} 11. a4
{[%clk 0:04:29.1]} 11... Nh5 {[%clk 0:04:23.3]} 12. Bg5 {[%clk 0:04:20.6]} 12...
Qb6 {[%clk 0:04:14.7]} 13. Qe2 {[%clk 0:04:03.3]} 13... Bxc3 {[%clk 0:04:07.8]}
14. bxc3 {[%clk 0:03:57.6]} 14... Nd7 {[%clk 0:04:01.8]} 15. Bh6+ {[%clk
0:03:55.5]} 15... Ng7 {[%clk 0:03:31]} 16. Qe7+ {[%clk 0:03:32.5]} 16... Kg8
{[%clk 0:03:28.3]} 17. Ng5 {[%clk 0:03:04.3]} 17... Rf8 {[%clk 0:03:11.3]} 18.
Rab1 {[%clk 0:02:57.8]} 18... Qd8 {[%clk 0:03:09.8]} 19. Rxb7 {[%clk 0:02:53.3]}
19... Ne5 {[%clk 0:02:16.7]} 20. Rxe5 {[%clk 0:02:26.1]} 20... dxe5 {[%clk
0:02:12.9]} 21. d6 {[%clk 0:02:24.7]} 21... Be6 {[%clk 0:01:58.9]} 22. Nxe6
{[%clk 0:02:20.2]} 22... Nxe6 {[%clk 0:01:53.8]} 23. Bxe6 {[%clk 0:02:14.8]}
23... Qxe7 {[%clk 0:01:52.1]} 24. Rxe7 {[%clk 0:02:11.4]} 24... Rb8 {[%clk
0:01:34.8]} 25. Bxf7# {[%clk 0:02:04.4]} 1-0